fUSD/lending_fUSD_20250622
["ID","MTS","AMOUNT","RATE_DAILY","PERIOD"]
[367035114,1750624250063,-490.0,0.00035616,15]
[367035115,1750624250072,-490.0,0.00035616,15]
[367035116,1750624250081,-712.86,0.00035616,15]
[367035117,1750624250090,-668.86,0.00035616,15]
[367035118,1750624250099,-503.33,0.00035616,15]
[367035119,1750624250109,-740.14,0.00035616,15]
[367035120,1750624250118,-852.38,0.00035616,15]
[367035121,1750624250128,-2930.32,0.00035616,15]
[367035122,1750624250138,-490.0,0.00035616,15]
[367035123,1750624250147,-490.0,0.00035616,15]
[367035124,1750624250156,-151.0,0.00035616,7]
[367035125,1750624250165,-1627.43,0.00035616,15]
[367035126,1750624250180,-333.46149932,0.00035616,15]
[367035127,1750624250193,-490.0,0.00035616,15]
[367035128,1750624250203,-490.0,0.00035616,15]
[367035129,1750624250212,-631.98,0.00035616,15]
[367035130,1750624250222,-490.0,0.00035616,15]
[367035131,1750624250232,-984.09,0.00035616,15]
[367035132,1750624250242,-1139.24,0.00035616,15]
[367035133,1750624250251,-1845.96,0.00035616,15]
[367035134,1750624250261,-490.0,0.00035616,15]
[367035135,1750624250272,-490.0,0.00035616,15]
[367035136,1750624250281,-490.0,0.00035616,15]
[367035137,1750624250290,-681.29,0.00035616,15]
[367035138,1750624250299,-490.0,0.00035616,15]
[367035139,1750624250308,-490.0,0.00035616,15]
[367035140,1750624250317,-917.86,0.00035616,15]
[367035141,1750624250326,-1848.86,0.00035616,15]
[367035142,1750624250335,-490.0,0.00035616,15]
[367035143,1750624250345,-490.0,0.00035616,15]
[367035144,1750624250354,-1118.32,0.00035616,15]
[367035145,1750624250363,-646.21,0.00035616,15]
[367035146,1750624250373,-2031.74,0.00035616,15]
[367035147,1750624250382,-490.0,0.00035616,15]
[367035148,1750624250391,-824.21,0.00035616,15]
[367035149,1750624250400,-1976.45,0.00035616,15]
[367035150,1750624250409,-490.0,0.00035616,15]
[367035151,1750624250418,-586.95209304,0.00035616,15]
[367035152,1750624250431,-490.0,0.00035616,15]
[367035153,1750624250440,-490.0,0.00035616,15]
[367035154,1750624250449,-564.16,0.00035616,15]
[367035155,1750624250458,-490.0,0.00035616,15]
[367035156,1750624250467,-223.56187925,0.00035616,15]
[367035157,1750624250477,-490.0,0.00035616,15]
[367035158,1750624250486,-490.0,0.00035616,15]
[367035159,1750624250496,-1225.93,0.00035616,15]
[367035160,1750624250505,-1827.66,0.00035616,15]
[367035161,1750624250514,-591.15,0.00035616,15]
[367035162,1750624250523,-578.34,0.00035616,15]
[367035163,1750624250532,-490.0,0.00035616,15]
[367035164,1750624250541,-1179.38,0.00035616,15]
[367035165,1750624250550,-1635.76,0.00035616,15]
[367035166,1750624250560,-490.0,0.00035616,15]
[367035167,1750624250570,-842.51,0.00035616,15]
[367035168,1750624250579,-1492.03,0.00035616,15]
[367035169,1750624250588,-193.7288707,0.00035616,15]
[367035170,1750624250598,-490.0,0.00035616,15]
[367035171,1750624250608,-1522.18,0.00035616,15]
[367035172,1750624250617,-490.0,0.00035616,15]
[367035173,1750624250626,-3218.23,0.00035616,15]
[367035174,1750624250635,-1356.95,0.00035616,15]
[367035175,1750624250644,-795.22,0.00035616,15]
[367035176,1750624250653,-1721.66,0.00035616,15]
[367035177,1750624250661,-490.0,0.00035616,15]
[367035178,1750624250671,-490.0,0.00035616,15]
[367035179,1750624250682,-534.03,0.00035616,15]
[367035180,1750624250691,-490.0,0.00035616,15]
[367035181,1750624250701,-490.0,0.00035616,15]
[367035182,1750624250710,-490.0,0.00035616,15]
[367035183,1750624250720,-490.0,0.00035616,15]
[367035184,1750624250729,-490.0,0.00035616,15]
[367035185,1750624250738,-1455.59,0.00035616,15]
[367035186,1750624250747,-565.01,0.00035616,15]
[367035187,1750624250757,-2191.68,0.00035616,15]
[367035188,1750624250766,-1041.03,0.00035616,15]
[367035189,1750624250775,-490.0,0.00035616,15]
[367035190,1750624250784,-1106.04,0.00035616,15]
[367035191,1750624250793,-490.0,0.00035616,15]
[367035192,1750624250802,-500.0,0.00035616,15]
[367035193,1750624250811,-748.13,0.00035616,15]
[367035194,1750624250820,-490.0,0.00035616,15]
[367035195,1750624250829,-626.93694004,0.00035616,15]
[367035196,1750624250838,-748.03,0.00035616,15]
[367035197,1750624250848,-490.0,0.00035616,15]
[367035198,1750624250857,-218.81969906,0.00035616,15]
[367035199,1750624250866,-569.1924528,0.00035616,15]
[367035200,1750624250875,-1035.02,0.00035616,15]
[367035201,1750624250884,-800.98,0.00035616,15]
[367035202,1750624250893,-5021.27,0.00035616,15]
[367035203,1750624250902,-490.0,0.00035616,15]
[367035204,1750624250911,-490.0,0.00035616,15]
[367035205,1750624250920,-3474.43,0.00035616,15]
[367035206,1750624250932,-757.23,0.00035616,15]
[367035207,1750624250941,-20219.59,0.00035616,15]
[367035208,1750624250949,-1120.93,0.00035616,15]
[367035209,1750624250958,-300.0,0.00035616,15]
[367035210,1750624250967,-1695.59,0.00035616,15]
[367035211,1750624250976,-603.1,0.00035616,15]
[367035212,1750624250985,-819.41,0.00035616,15]
[367035213,1750624250994,-924.68,0.00035616,15]
[367035214,1750624251003,-490.0,0.00035616,15]
[367035215,1750624251012,-808.49,0.00035616,15]
[367035216,1750624251021,-490.0,0.00035616,15]
[367035217,1750624251030,-490.0,0.00035616,15]
[367035218,1750624251039,-1032.96,0.00035616,15]
[367035219,1750624251048,-490.0,0.00035616,15]
[367035220,1750624251057,-490.0,0.00035616,15]
[367035221,1750624251070,-2228.82,0.00035616,15]
[367035222,1750624251084,-1230.14,0.00035616,15]
[367035223,1750624251094,-738.87,0.00035616,15]
[367035224,1750624251103,-269.61579122,0.00035616,15]
[367035225,1750624251112,-490.0,0.00035616,15]
[367035226,1750624251122,-490.0,0.00035616,15]
[367035227,1750624251131,-151.0,0.00035616,7]
[367035228,1750624251140,-1171.33,0.00035616,15]
[367035229,1750624251149,-1600.66,0.00035616,15]
[367035230,1750624251159,-1651.36,0.00035616,15]
[367035231,1750624251168,-490.0,0.00035616,15]
[367035232,1750624251182,-490.0,0.00035616,15]
[367035233,1750624251195,-725.16,0.00035616,15]
[367035234,1750624251204,-921.69,0.00035616,15]
[367035235,1750624251213,-4630.54,0.00035616,15]
[367035236,1750624251222,-742.25,0.00035616,15]
[367035237,1750624251233,-490.0,0.00035616,15]
[367035238,1750624251242,-3202.14,0.00035616,15]
[367035239,1750624251251,-490.0,0.00035616,15]
[367035240,1750624251261,-490.0,0.00035616,15]
[367035241,1750624251271,-490.0,0.00035616,15]
[367035242,1750624251280,-490.0,0.00035616,15]
[367035243,1750624251290,-490.0,0.00035616,15]
[367035244,1750624251299,-1939.67,0.00035616,15]
[367035245,1750624251308,-490.0,0.00035616,15]
[367035246,1750624251317,-151.0,0.00035616,7]
[367035247,1750624251326,-247.23476455,0.00035616,15]
[367035248,1750624251336,-1808.31,0.00035616,15]
[367035249,1750624251345,-585.85,0.00035616,15]
[367035250,1750624251355,-490.0,0.00035616,15]
[367035251,1750624251364,-1845.53,0.00035616,15]
[367035252,1750624251373,-2047.88,0.00035616,15]
[367035253,1750624251382,-437.52047367,0.00035616,15]
[367035254,1750624251391,-490.0,0.00035616,15]
[367035255,1750624251400,-490.0,0.00035616,15]
[367035256,1750624251409,-852.44,0.00035616,15]
[367035257,1750624251418,-1806.19,0.00035616,15]
[367035258,1750624251430,-1284.32,0.00035616,15]
[367035259,1750624251439,-490.0,0.00035616,15]
[367035260,1750624251448,-414.7155134,0.00035616,15]
[367035261,1750624251457,-490.0,0.00035616,15]
[367035262,1750624251466,-547.98,0.00035616,15]
[367035263,1750624251475,-174.91247071,0.00035616,15]
[367035264,1750624251484,-151.0,0.00035616,7]
[367035265,1750624251493,-590.43,0.00035616,15]
[367035266,1750624251502,-490.0,0.00035616,15]
[367035267,1750624251511,-490.0,0.00035616,15]
[367035268,1750624251520,-490.0,0.00035616,15]
[367035269,1750624251529,-490.0,0.00035616,15]
[367035270,1750624251538,-1853.09,0.00035616,15]
[367035271,1750624251547,-490.0,0.00035616,15]
[367035272,1750624251556,-649.83,0.00035616,15]
[367035273,1750624251565,-490.0,0.00035616,15]
[367035274,1750624251574,-1449.73,0.00035616,15]
[367035275,1750624251584,-490.0,0.00035616,15]
[367035276,1750624251593,-2475.42,0.00035616,15]
[367035277,1750624251603,-1796.32,0.00035616,15]
[367035278,1750624251612,-31058.74,0.00035616,15]
[367035279,1750624251621,-490.0,0.00035616,15]
[367035280,1750624251630,-638.75230958,0.00035616,15]
[367035281,1750624251640,-1264.1,0.00035616,15]
[367035282,1750624251659,-169.75197381,0.00035616,15]
[367035283,1750624251669,-490.0,0.00035616,15]
[367035284,1750624251683,-503.98,0.00035616,15]
[367035285,1750624251692,-490.0,0.00035616,15]
[367035286,1750624251702,-490.0,0.00035616,15]
[367035287,1750624251711,-490.0,0.00035616,15]
[367035288,1750624251721,-1616.54,0.00035616,15]
[367035289,1750624251730,-2103.73,0.00035616,15]
[367035290,1750624251739,-749.32,0.00035616,15]
[367035291,1750624251749,-3476.57,0.00035616,15]
[367035292,1750624251758,-626.06069466,0.00035616,15]
[367035293,1750624251767,-1128.69,0.00035616,15]
[367035294,1750624251777,-1007.14,0.00035616,15]
[367035295,1750624251786,-1772.65,0.00035616,15]
[367035296,1750624251796,-1023.62,0.00035616,15]
[367035297,1750624251805,-2622.51,0.00035616,15]
[367035298,1750624251814,-1753.66,0.00035616,15]
[367035299,1750624251824,-338.35829122,0.00035616,15]
[367035300,1750624251833,-2175.46,0.00035616,15]
[367035301,1750624251842,-1279.49,0.00035616,15]
[367035302,1750624251851,-490.0,0.00035616,15]
[367035303,1750624251861,-6044.74,0.00035616,15]
[367035304,1750624251870,-537.88,0.00035616,15]
[367035305,1750624251879,-1930.55,0.00035616,15]
[367035306,1750624251889,-490.0,0.00035616,15]
[367035307,1750624251898,-2519.66,0.00035616,15]
[367035308,1750624251907,-490.0,0.00035616,15]
[367035309,1750624251916,-490.0,0.00035616,15]
[367035310,1750624251926,-810.07,0.00035616,15]
[367035311,1750624251935,-1476.99,0.00035616,15]
[367035312,1750624251944,-833.08,0.00035616,15]
[367035313,1750624251953,-534.12,0.00035616,15]
[367035314,1750624251962,-2078.71,0.00035616,15]
[367035315,1750624251971,-636.67665354,0.00035616,15]
[367035316,1750624251980,-921.45,0.00035616,15]
[367035317,1750624251989,-5865.94,0.00035616,15]
[367035318,1750624251998,-490.0,0.00035616,15]
[367035319,1750624252007,-490.0,0.00035616,15]
[367035320,1750624252017,-151.300273,0.00035616,7]
[367035321,1750624252026,-2110.37,0.00035616,15]
[367035322,1750624252035,-490.0,0.00035616,15]
[367035323,1750624252045,-4513.94,0.00035616,15]
[367035324,1750624252054,-490.0,0.00035616,15]
[367035325,1750624252065,-490.0,0.00035616,15]
[367035326,1750624252075,-1396.19,0.00035616,15]
[367035327,1750624252085,-490.0,0.00035616,15]
[367035328,1750624252096,-490.0,0.00035616,15]
[367035329,1750624252106,-490.0,0.00035616,15]
[367035330,1750624252116,-490.0,0.00035616,15]
[367035331,1750624252126,-2609.86,0.00035616,15]
[367035332,1750624252137,-769.92,0.00035616,15]
[367035333,1750624252147,-8212.32,0.00035616,15]
[367035334,1750624252156,-210.0,0.00035616,15]
[367035335,1750624252165,-2845.2,0.00035616,15]
[367035336,1750624252177,-490.0,0.00035616,15]
[367035337,1750624252190,-1182.11,0.00035616,15]
[367035338,1750624252200,-944.68,0.00035616,15]
[367035339,1750624252210,-490.0,0.00035616,15]
[367035340,1750624252219,-2443.42,0.00035616,15]
[367035341,1750624252230,-2854.59,0.00035616,15]
[367035342,1750624252239,-1844.5,0.00035616,15]
[367035343,1750624252249,-618.14,0.00035616,15]
[367035344,1750624252261,-2633.98,0.00035616,15]
[367035345,1750624252271,-490.0,0.00035616,15]
[367035346,1750624252281,-3064.74,0.00035616,15]
[367035347,1750624252391,-490.0,0.00035616,15]
[367035348,1750624252447,-490.0,0.00035616,15]
[367035349,1750624252457,-490.0,0.00035616,15]
[367035350,1750624252468,-3359.51,0.00035616,15]
[367035351,1750624252477,-490.0,0.00035616,15]
[367035352,1750624252487,-1868.57,0.00035616,15]
[367035353,1750624252496,-404.87232517,0.00035616,15]
[367035354,1750624252506,-542.61,0.00035616,15]
[367035355,1750624252515,-1626.54,0.00035616,15]
[367035356,1750624252524,-3594.73,0.00035616,15]
[367035357,1750624252533,-151.0,0.00035616,7]
[367035358,1750624252543,-1009.82,0.00035616,15]
[367035359,1750624252552,-1747.69,0.00035616,15]
[367035360,1750624252561,-1698.68,0.00035616,15]
[367035361,1750624252571,-490.0,0.00035616,15]
[367035362,1750624252580,-1856.7,0.00035616,15]
[367035363,1750624252590,-490.0,0.00035616,15]
[367035364,1750624252599,-490.0,0.00035616,15]
[367035365,1750624252610,-553.18,0.00035616,15]
[367035366,1750624252620,-1722.54,0.00035616,15]
[367035367,1750624252630,-490.0,0.00035616,15]
[367035368,1750624252641,-882.0,0.00035616,15]
[367035369,1750624252651,-490.0,0.00035616,15]
[367035370,1750624252661,-738.66,0.00035616,15]
[367035371,1750624252670,-490.0,0.00035616,15]
[367035372,1750624252681,-2365.64,0.00035616,15]
[367035373,1750624252690,-3132.65,0.00035616,15]
[367035374,1750624252700,-490.0,0.00035616,15]
[367035375,1750624252710,-490.0,0.00035616,15]
[367035376,1750624252719,-490.0,0.00035616,15]
[367035377,1750624252729,-490.0,0.00035616,15]
[367035378,1750624252738,-151.0,0.00035616,7]
[367035379,1750624252748,-490.0,0.00035616,15]
[367035380,1750624252758,-1838.39,0.00035616,15]
[367035381,1750624252767,-490.0,0.00035616,15]
[367035382,1750624252777,-1685.38,0.00035616,15]
[367035383,1750624252786,-490.0,0.00035616,15]
[367035384,1750624252795,-553.54,0.00035616,15]
[367035385,1750624252804,-490.0,0.00035616,15]
[367035386,1750624252814,-490.0,0.00035616,15]
[367035387,1750624252823,-490.0,0.00035616,15]
[367035388,1750624252833,-1551.93,0.00035616,15]
[367035389,1750624252842,-490.0,0.00035616,15]
[367035390,1750624252851,-490.0,0.00035616,15]
[367035391,1750624252862,-1330.5,0.00035616,15]
[367035392,1750624252872,-3680.44,0.00035616,15]
[367035393,1750624252881,-490.0,0.00035616,15]
[367035394,1750624252890,-490.0,0.00035616,15]
[367035395,1750624252900,-490.0,0.00035616,15]
[367035396,1750624252909,-490.0,0.00035616,15]
[367035397,1750624252918,-490.0,0.00035616,15]
[367035398,1750624252930,-2020.57,0.00035616,15]
[367035399,1750624252939,-1818.83,0.00035616,15]
[367035400,1750624252948,-468.39910917,0.00035616,15]
[367035401,1750624252958,-710.65,0.00035616,15]
[367035402,1750624252967,-490.0,0.00035616,15]
[367035403,1750624252976,-721.02344951,0.00035616,15]
[367035404,1750624253011,-76.56655049,0.00035616,15]
[367035405,1750624253020,-1144.13,0.00035616,15]
[367035406,1750624253030,-746.83791785,0.00035616,15]
[367035407,1750624253041,-170.09208215,0.00035616,15]
[367035408,1750624253051,-192.89104344,0.00035616,15]
[367035409,1750624253063,-1244.07895656,0.00035616,15]
[367035410,1750624253072,-206.95579244,0.00035616,15]
[367035411,1750624253084,-545.152395,0.00035616,15]
[367035412,1750624253095,-108.80181256,0.00035616,15]
[367035413,1750624253105,-490.0,0.00035616,15]
[367035414,1750624253114,-157.19068744,0.00035616,15]
[367035415,1750624253126,-310.96260002,0.00035616,15]
[367035416,1750624253154,-21.84671254,0.00035616,15]
[367035417,1750624253163,-257.14998746,0.00035616,15]
[367035418,1750624253177,-232.85001254,0.00035616,15]
[367035419,1750624253189,-1472.01298746,0.00035616,15]
[367035420,1750624253763,-5852.81701254,0.00035616,15]
[367035421,1750624253773,-490.0,0.00035616,15]
[367035422,1750624253782,-496.22,0.00035616,15]
[367035423,1750624253792,-1804.74,0.00035616,15]
[367035424,1750624253801,-490.0,0.00035616,15]
[367035425,1750624253811,-4500.94,0.00035616,15]
[367035426,1750624253820,-490.0,0.00035616,15]
[367035427,1750624253830,-1772.88,0.00035616,15]
[367035428,1750624253841,-5224.98,0.00035616,15]
[367035429,1750624253852,-490.0,0.00035616,15]
[367035430,1750624253861,-1643.98,0.00035616,15]
[367035431,1750624253871,-490.0,0.00035616,15]
[367035432,1750624253880,-948.04,0.00035616,15]
[367035433,1750624253890,-772.15,0.00035616,15]
[367035434,1750624253900,-490.0,0.00035616,15]
[367035435,1750624253910,-490.0,0.00035616,15]
[367035436,1750624253921,-490.0,0.00035616,15]
[367035437,1750624253933,-773.9,0.00035616,15]
[367035438,1750624253943,-1383.44,0.00035616,15]
[367035439,1750624253952,-513.32720314,0.00035616,15]
[367035440,1750624253961,-490.0,0.00035616,15]
[367035441,1750624253971,-1943.46,0.00035616,15]
[367035442,1750624253981,-4235.6,0.00035616,15]
[367035443,1750624253992,-726.12,0.00035616,15]
[367035444,1750624254002,-3682.12865014,0.00035616,15]
[367035445,1750624254029,-79.38134986,0.00035616,15]
[367035446,1750624254039,-490.0,0.00035616,15]
[367035447,1750624254051,-24.81320926,0.00035616,15]
[367035448,1750624254063,-465.18679074,0.00035616,15]
[367035449,1750624254073,-490.0,0.00035616,15]
[367035450,1750624254083,-490.0,0.00035616,15]
[367035451,1750624254094,-1833.47,0.00035616,15]
[367035452,1750624254104,-4247.89,0.00035616,15]
[367035453,1750624254115,-358.36909291,0.00035616,15]
[367035454,1750624254967,-259.15090709,0.00035616,15]
[367035455,1750624254977,-2844.26,0.00035616,15]
[367035456,1750624254986,-998.26,0.00035616,15]
[367035457,1750624254995,-590.09774677,0.00035616,15]
[367035458,1750624255005,-3150.42,0.00035616,15]
[367035459,1750624255015,-1051.14,0.00035616,15]
[367035460,1750624255024,-1536.92,0.00035616,15]
[367035461,1750624255033,-514.04260122,0.00035616,15]
[367035462,1750624255043,-490.0,0.00035616,15]
[367035463,1750624255052,-299.03738825,0.00035616,15]
[367035464,1750624255062,-2296.57,0.00035616,15]
[367035465,1750624255071,-824.15,0.00035616,15]
[367035466,1750624255081,-512.9,0.00035616,15]
[367035467,1750624255090,-490.0,0.00035616,15]
[367035468,1750624255099,-1720.94,0.00035616,15]
[367035469,1750624255109,-735.3,0.00035616,15]
[367035470,1750624255118,-490.0,0.00035616,15]
[367035471,1750624255128,-490.0,0.00035616,15]
[367035472,1750624255137,-490.0,0.00035616,15]
[367035473,1750624255146,-1476.49,0.00035616,15]
[367035474,1750624255156,-490.0,0.00035616,15]
[367035475,1750624255165,-490.0,0.00035616,15]
[367035476,1750624255175,-1199.18,0.00035616,15]
[367035477,1750624255196,-2653.13,0.00035616,15]
[367035478,1750624255206,-490.0,0.00035616,15]
[367035479,1750624255216,-490.0,0.00035616,15]
[367035480,1750624255227,-908.66,0.00035616,15]
[367035481,1750624255237,-490.0,0.00035616,15]
[367035482,1750624255247,-1237.3,0.00035616,15]
[367035483,1750624255256,-886.23511038,0.00035616,15]
[367035484,1750624255270,-481.09999618,0.00035616,15]
[367035485,1750624255282,-1407.38489344,0.00035616,15]
[367035486,1750624255292,-490.0,0.00035616,15]
[367035487,1750624255302,-518.86,0.00035616,15]
[367035488,1750624255312,-490.0,0.00035616,15]
[367035489,1750624255322,-490.0,0.00035616,15]
[367035490,1750624255332,-490.0,0.00035616,2]
[367035491,1750624255342,-832.94,0.00035616,15]
[367035492,1750624255352,-190.33010656,0.00035616,15]
[367035493,1750624255485,-762.73989344,0.00035616,15]
[367035494,1750624255497,-2195.35,0.00035616,15]
[367035495,1750624255507,-179.28191889,0.00035616,15]
[367035496,1750624255516,-4546.78,0.00035616,15]
[367035497,1750624255525,-4319.59,0.00035616,15]
[367035498,1750624255535,-151.0,0.00035616,7]
[367035499,1750624255545,-1853.47,0.00035616,15]
[367035500,1750624255554,-853.97,0.00035616,15]
[367035501,1750624255564,-2303.06,0.00035616,15]
[367035502,1750624255573,-490.0,0.00035616,15]
[367035503,1750624255583,-490.0,0.00035616,15]
[367035504,1750624255592,-12417.29,0.00035616,15]
[367035505,1750624255602,-490.0,0.00035616,15]
[367035506,1750624255611,-1034.25,0.00035616,15]
[367035507,1750624255622,-952.9,0.00035616,15]
[367035508,1750624255631,-2136.65,0.00035616,15]
[367035509,1750624255640,-1774.76,0.00035616,15]
[367035510,1750624255650,-154.03612538,0.00035616,15]
[367035511,1750624255660,-8609.41,0.00035616,15]
[367035512,1750624255669,-490.0,0.00035616,15]
[367035513,1750624255681,-490.0,0.00035616,15]
[367035514,1750624255690,-1298.46,0.00035616,15]
[367035515,1750624255700,-826.81,0.00035616,15]
[367035516,1750624255709,-490.0,0.00035616,15]
[367035517,1750624255719,-798.38,0.00035616,15]
[367035518,1750624255731,-1820.31,0.00035616,15]
[367035519,1750624255740,-490.0,0.00035616,15]
[367035520,1750624255750,-490.0,0.00035616,15]
[367035521,1750624255759,-11180.96,0.00035616,15]
[367035522,1750624255769,-1320.89,0.00035616,15]
[367035523,1750624255779,-490.0,0.00035616,15]
[367035524,1750624255789,-490.0,0.00035616,15]
[367035525,1750624255799,-1013.29,0.00035616,15]
[367035526,1750624255808,-1029.41,0.00035616,15]
[367035527,1750624255818,-5991.35,0.00035616,15]
[367035528,1750624255827,-5573.16,0.00035616,15]
[367035529,1750624255837,-490.0,0.00035616,15]
[367035530,1750624255846,-879.81,0.00035616,15]
[367035531,1750624255856,-490.0,0.00035616,15]
[367035532,1750624255866,-1085.81,0.00035616,15]
[367035533,1750624255875,-631.6,0.00035616,15]
[367035534,1750624255884,-1825.33,0.00035616,15]
[367035535,1750624255893,-861.97,0.00035616,15]
[367035536,1750624255903,-151.0,0.00035616,7]
[367035537,1750624255912,-1716.22,0.00035616,15]
[367035538,1750624255923,-2026.73,0.00035616,15]
[367035539,1750624255937,-2595.62,0.00035616,15]
[367035540,1750624255947,-1575.05,0.00035616,15]
[367035541,1750624255957,-1867.89,0.00035616,15]
[367035542,1750624255967,-1166.02,0.00035616,15]
[367035543,1750624255976,-151.0,0.00035616,7]
[367035544,1750624255986,-490.0,0.00035616,2]
[367035545,1750624255995,-1279.45,0.00035616,15]
[367035546,1750624256004,-1416.01,0.00035616,15]
[367035547,1750624256013,-582.85,0.00035616,15]
[367035548,1750624256023,-552.30342636,0.00035616,15]
[367035549,1750624256033,-3339.22,0.00035616,15]
[367035550,1750624256042,-1292.58,0.00035616,15]
[367035551,1750624256052,-1726.69,0.00035616,15]
[367035552,1750624256062,-2700.97,0.00035616,15]
[367035553,1750624256071,-1307.99,0.00035616,15]
[367035554,1750624256081,-1850.9,0.00035616,15]
[367035555,1750624256092,-490.0,0.00035616,15]
[367035556,1750624256101,-490.0,0.00035616,15]
[367035557,1750624256111,-6655.26,0.00035616,15]
[367035558,1750624256121,-490.0,0.00035616,15]
[367035559,1750624256130,-490.0,0.00035616,15]
[367035560,1750624256140,-490.0,0.00035616,15]
[367035561,1750624256150,-498.92320193,0.00035616,15]
[367035562,1750624256159,-1918.17,0.00035616,15]
[367035563,1750624256169,-1746.43,0.00035616,15]
[367035564,1750624256183,-1860.61,0.00035616,15]
[367035565,1750624256197,-951.62,0.00035616,15]
[367035566,1750624256207,-490.0,0.00035616,15]
[367035567,1750624256216,-2036.68,0.00035616,15]
[367035568,1750624256226,-800.52,0.00035616,15]
[367035569,1750624256237,-2495.95,0.00035616,15]
[367035570,1750624256246,-141.16876338,0.00035616,15]
[367035571,1750624256259,-359.75301567,0.00035616,15]
[367035572,1750624256271,-550.6,0.00035616,15]
[367035573,1750624256281,-517.46,0.00035616,15]
[367035574,1750624256291,-1353.47,0.00035616,15]
[367035575,1750624256300,-2952.26,0.00035616,15]
[367035576,1750624256309,-6501.64,0.00035616,15]
[367035577,1750624256319,-1925.58,0.00035616,15]
[367035578,1750624256329,-490.0,0.00035616,15]
[367035579,1750624256338,-1495.6,0.00035616,15]
[367035580,1750624256348,-490.0,0.00035616,15]
[367035581,1750624256357,-490.0,0.00035616,15]
[367035582,1750624256366,-9980.93,0.00035616,14]
[367035583,1750624256376,-490.0,0.00035616,15]
[367035584,1750624256385,-490.0,0.00035616,15]
[367035585,1750624256394,-1145.23,0.00035616,2]
[367035586,1750624256404,-490.0,0.00035616,15]
[367035587,1750624256413,-493.74550747,0.00035616,7]
[367035588,1750624256422,-1730.92,0.00035616,15]
[367035589,1750624256436,-490.0,0.00035616,15]
[367035590,1750624256446,-9623.97,0.00035616,15]
[367035591,1750624256456,-1782.14,0.00035616,15]
[367035592,1750624256466,-2549.86,0.00035616,15]
[367035593,1750624256475,-490.0,0.00035616,15]
[367035594,1750624256485,-490.0,0.00035616,15]
[367035595,1750624256494,-490.0,0.00035616,15]
[367035596,1750624256503,-1419.55,0.00035616,15]
[367035597,1750624256513,-490.0,0.00035616,15]
[367035598,1750624256522,-490.0,0.00035616,2]
[367035599,1750624256531,-1643.14,0.00035616,15]
[367035600,1750624256541,-490.0,0.00035616,15]
[367035601,1750624256551,-490.0,0.00035616,15]
[367035602,1750624256561,-972.68,0.00035616,15]
[367035603,1750624256571,-8216.76,0.00035616,15]
[367035604,1750624256580,-1945.91,0.00035616,15]
[367035605,1750624256590,-1767.47,0.00035616,15]
[367035606,1750624256599,-490.0,0.00035616,15]
[367035607,1750624256609,-1636.03,0.00035616,15]
[367035608,1750624256618,-490.0,0.00035616,15]
[367035609,1750624256628,-1958.19,0.00035616,15]
[367035610,1750624256637,-490.0,0.00035616,2]
[367035611,1750624256647,-497.76,0.00035616,15]
[367035612,1750624256657,-490.0,0.00035616,15]
[367035613,1750624256666,-490.0,0.00035616,15]